Cogmind - Beta 16.1 @@@ ROGUE MODE // 2026.04.23 @ 12:45:02 Player: SunShine214 Result: Destroyed self with Grenade Launcher Performance ------------- Evolutions (0) 0 Regions Visited (2) 400 Robots Destroyed (20) 100 Value Destroyed (344) 344 Prototype IDs (0) 0 Alien Tech Used (0) 0 Bonus (0) 0 TOTAL SCORE: 844 Bonus ------- None Cogmind --------- Core Integrity 0/250 Matter 183/300 Energy 100/100 System Corruption 1% Temperature Cool (0) Movement Core (100) Ox1 Location -10/Subcaves Parts ------- > --- POWER (1) -------- (None) > --- PROPULSION (2) --- (None) > --- UTILITY (2) ------ Sensor Array Signal Interpreter > --- WEAPON (2) ------- Grenade Launcher > --- INVENTORY (5) ---- Light Treads Light Treads Large Storage Unit Grenade Launcher Peak State ------------ > --- POWER ------------ Light Ion Engine > --- PROPULSION ------- VTOL Module VTOL Module > --- UTILITY ---------- Large Storage Unit Seismic Detector > --- WEAPON ----------- Spread Laser Spread Laser > --- INVENTORY -------- Light Treads Light Treads Light Treads Light Treads Large Storage Unit Sensor Array Signal Interpreter Light Armor Plating Hacking Suite Spread Laser Spread Laser Light EM Pulse Cannon Grenade Launcher Grenade Launcher Mining Laser [Rating: 13] Favorites ----------- Power Light Ion Engine Engine Light Ion Engine Propulsion Light Treads Treads Light Treads Flight Unit VTOL Module Utility Seismic Detector Device Seismic Detector Storage Large Storage Unit Processor Signal Interpreter Weapon Spread Laser Energy Gun Spread Laser Energy Cannon Light EM Pulse Cannon Ballistic Gun Assault Rifle Launcher Grenade Launcher Special Weapon Mining Laser Build | -11 -10 -10 ------- Run | Yrd Mat Sub Slots Evolved . | . . . Power . | . . . Propulsion . | . . . Utility . | . . . Weapon . | . . . Parts Attached 25 | 8 10 7 Power 3 | 1 2 . Engine 3 | 1 2 . Core . | . . . Reactor . | . . . Propulsion 7 | 2 3 2 Treads 5 | 2 3 . Leg . | . . . Wheel . | . . . Hover . | . . . Flight 2 | . . 2 Utility 5 | 2 1 2 Device 2 | 1 . 1 Storage 2 | 1 1 . Processor 1 | . . 1 Hackware . | . . . Protection . | . . . Artifact . | . . . Weapon 10 | 3 4 3 Energy Gun 5 | 1 3 1 Energy Cannon 1 | . . 1 Ballistic Gun 2 | 2 . . Ballistic Cannon . | . . . Launcher 1 | . . 1 Special Weapon 1 | . 1 . Impact Weapon . | . . . Slashing Weapon . | . . . Piercing Weapon . | . . . Special Melee Weapon . | . . . Unidentified Prototypes . | . . . Parts Lost 5 | . 1 4 Power 2 | . 1 1 Propulsion 2 | . . 2 Utility . | . . . Weapon 1 | . . 1 Highest Loss Streak 4 | . 1 4 To Critical Strikes . | . . . Average Backups 10 | . 11 6 Power . | . . . Propulsion 2 | . 3 2 Utility 3 | . 4 1 Weapon 3 | . 4 2 Tool/Special . | . . . Unused Backups 8 | . 2 6 Power . | . . . Propulsion 2 | . 1 1 Utility 3 | . . 3 Weapon 3 | . 1 2 Tool/Special . | . . . Average Slot Usage (%) 97 | . 99 79 Engine 13 | . 13 9 Treads 25 | . 28 . Flight 2 | . . 22 Device 13 | . 13 14 Storage 12 | . 14 1 Processor 1 | . . 11 Energy Gun 20 | . 21 9 Ballistic Gun 5 | . 6 . Peak Build Rating 13 | 7 11 13 Average Rating 9 | 5 9 7 On Entrance 6 | . 7 11 Avg Prop Armor Cover (%) . | . . . Naked Turns . | . . . Heaviest Build 30 | 12 30 30 Greatest Support 40 | 40 40 8 Greatest Overweight (x) 3 | . 1 3 Average Overweight (x) . | . . . Largest Inventory Capacity 15 | 8 15 15 Average Capacity 11 | 7 13 5 Most Carried 15 | 1 15 15 Average Carried 10 | . 11 5 Final Capacity 15 | 8 15 5 Final Carried 15 | 1 15 4 Class Distribution -------------------- 92% | Mutant 7% | Sprinter Dominant Class ---------------- Mutant | -10/Materials Sprinter | -10/Subcaves Resources | -11 -10 -10 ----------- Run | Yrd Mat Sub Matter Collected 580 | 268 312 . Remotely . | . . . Salvage Created 534 | 172 362 . Parts 38 | 15 23 . Haulers Intercepted . | . . . Recyclers Shooed 1 | . 1 . Parts Field Recycled . | . . . Retrieved Matter . | . . . Parts Self-Destructed 1 | . . 1 Prevented . | . . . Parts Restored . | . . . Kills | -11 -10 -10 ------- Run | Yrd Mat Sub Combat Hostiles Destroyed 12 | . 12 . Guns 12 | . 12 . Classes Destroyed 6 | 2 4 . Worker 1 | . 1 . Tunneler 4 | 4 . . Recycler 2 | 1 1 . Operator 1 | . 1 . Swarmer 6 | . 6 . Grunt 6 | . 6 . Best Kill Streak 5 | 3 5 . Combat Bots Only 4 | . 4 . Max Kills in Single Turn 2 | 1 2 . Gunslinging . | . . . Exploded . | . . . Melee . | . . . Uniques/NPCs Destroyed . | . . . Combat | -11 -10 -10 -------- Run | Yrd Mat Sub Hostile Shots Fired 89 | . 82 7 Missed 22 | . 17 5 Hits 67 | . 65 2 Projectile 67 | . 65 2 AOE 3 | . . 3 Damage Taken 959 | . 650 309 Core 257 | . 112 145 Absorbed by Shields . | . . . Core Remaining (%) 100 | 100 . . Volleys Fired 73 | 14 56 3 Largest 2 | 2 2 1 Hottest 130 | 60 130 30 Shots Fired 139 | 28 108 3 Gun 135 | 28 107 . Cannon . | . . . Launcher 3 | . . 3 Special 1 | . 1 . Kinetic 47 | 14 33 . Thermal 89 | 14 75 . Explosive 3 | . . 3 Electromagnetic . | . . . Robot Hit Streak 7 | 3 7 . Robot Miss Streak 16 | 2 16 . Penetration Max . | . . . Secondary Targets 3 | . 3 . Max Gunslinging Chain 1 | . 1 . Shots Hit Robots 86 | 14 72 . Core Hits 61 | 6 55 . Critical Kills . | . . . Critical Parts Destroyed . | . . . Critical Strikes . | . . . Melee Attacks . | . . . Impact . | . . . Slashing . | . . . Piercing . | . . . Sneak Attacks . | . . . Combat Hostiles . | . . . Follow-up Attacks . | . . . Damage Inflicted 1102 | 176 926 . Guns 1078 | 176 902 . Cannons . | . . . Explosions . | . . . Melee . | . . . Ramming 24 | . 24 . Kinetic 293 | 93 200 . Thermal 785 | 83 702 . Explosive . | . . . Electromagnetic . | . . . Impact . | . . . Slashing . | . . . Piercing . | . . . Highest Corruption 1 | . 1 1 Average Corruption 1 | . 1 1 Corruption Purged . | . . . Corruption Blocked . | . . . Effects 10 | . 8 2 Message Errors 3 | . 2 1 Matter Fused 1 | . 1 . Heat Flow Errors 1 | . 1 . Energy Discharges 2 | . 2 . Parts Rejected 1 | . . 1 Data Loss (minor) 1 | . 1 . Misfires 1 | . 1 . Overload Shots . | . . . Overflow Damage . | . . . Projectiles . | . . . Explosions . | . . . Melee . | . . . Knockbacks . | . . . Impact . | . . . Kinetic . | . . . Secondary . | . . . Self-Inflicted Damage 117 | . . 117 Shots 3 | . . 3 Rammed 5 | . 5 . Targets Rammed 5 | . 5 . Kicked . | . . . Crushed . | . . . Highest Temperature 557 | . 557 . Average Temperature 163 | . 163 . Received Heat Transfer 252 | . 252 . Effects 7 | . 7 . Shutdowns 4 | . 4 . Matter Decay 1 | . 1 . Short Circuit 1 | . 1 . Damage (minor) 1 | . 1 . Siege Activations . | . . . Martial Activations . | . . . Shielding Activations . | . . . Robots Disrupted . | . . . Combat Hostiles . | . . . Robots Corrupted . | . . . Combat Hostiles . | . . . Parts Fried . | . . . Impact Corruptions . | . . . Robots Melted . | . . . Combat Hostiles . | . . . Parts Melted . | . . . Heat Transferred 1280 | 200 1080 . Parts Sabotaged . | . . . Parts Stolen . | . . . Parts Stripped . | . . . Power Chain Reactions . | . . . Alert | -11 -10 -10 ------- Run | Yrd Mat Sub Maximum Alert Level . | . . . Low Security (%) 100 | 100 100 . Level 1 . | . . . Level 2 . | . . . Level 3 . | . . . Level 4 . | . . . Level 5 . | . . . High Security . | . . . Max Security . | . . . Peak Influence 138 | 10 138 . Initial . | . . . Average 36 | . 39 . Influence Increases 376 | 25 351 . Destroy 0b10 Robot/C 240 | . 240 . Destroy 0b10 Robot/NC 40 | 25 15 . Destroy Leader 50 | . 50 . Disable Machine 15 | . 15 . Destroy Structure 1 | . 1 . Lose Combat Pursuer 30 | . 30 . Influence Decreases 376 | 25 241 110 Entered New Map 54 | . . 54 Time Decay 312 | 25 231 56 Lost Part 10 | . 10 . Squads Dispatched 2 | . 2 . Investigation 1 | . 1 . Extermination . | . . . Reinforcement 1 | . 1 . Assault . | . . . Garrison . | . . . Intercept . | . . . Searches Triggered . | . . . Construction Impeded . | . . . Haulers Reinforced . | . . . Active Scanning Responses . | . . . Cargo Convoy Interrupts . | . . . Stealth | -11 -10 -10 --------- Run | Yrd Mat Sub Distress Signals 3 | . 3 . Communications Jammed . | . . . Distress Signals . | . . . Times Spotted 36 | . 32 4 Peak Tracking Total 5 | . 5 3 Tactical Retreats 1 | . 1 . Traps | -11 -10 -10 ------- Run | Yrd Mat Sub Traps Triggered 3 | . 3 . Indirectly . | . . . Trap Hack Attempts . | . . . Triggered . | . . . Disarmed . | . . . Reprogrammed . | . . . Reused . | . . . Traps Extracted . | . . . Installed . | . . . Triggered . | . . . Machines | -11 -10 -10 ---------- Run | Yrd Mat Sub Machines Disabled 1 | . 1 . Max in Single Turn 1 | . 1 . Machines Repaired . | . . . Machines Dismantled . | . . . Machines Sabotaged . | . . . Overloaded Fab Kills . | . . . Hacking | -11 -10 -10 --------- Run | Yrd Mat Sub Machines Accessed 2 | . 2 . Terminals 2 | . 2 . Fabricators . | . . . Repair Stations . | . . . Recycling Units . | . . . Scanalyzers . | . . . Garrison Access . | . . . Total Hacks 7 | . 7 . Successful 1 | . 1 . Failed 6 | . 6 . Catastrophic 2 | . 2 . Database Lockouts . | . . . Manual 1 | . 1 . Terminals 7 | . 7 . Fabricators . | . . . Repair Stations . | . . . Recycling Units . | . . . Scanalyzers . | . . . Garrison Access . | . . . Terminal Hacks 1 | . 1 . Registered Components 1 | . 1 . Fabricator Hacks . | . . . Repair Station Hacks . | . . . Recycling Unit Hacks . | . . . Scanalyzer . | . . . Garrison Access Hacks . | . . . Unauthorized Hacks . | . . . Terminals . | . . . Fabricators . | . . . Repair Stations . | . . . Recycling Units . | . . . Scanalyzers . | . . . Garrison Access . | . . . Data Cores Recovered 1 | . 1 . Used 1 | . 1 . Hacking Detections 2 | . 2 . Full Trace Events . | . . . Feedback Events . | . . . Feedback Blocked . | . . . Robot Schematics Acquired . | . . . Robots Built . | . . . Authchips . | . . . Time . | . . . Total Robot Build Rating . | . . . Part Schematics Acquired . | . . . Parts Built . | . . . Authchips . | . . . Time . | . . . Total Part Build Rating . | . . . Part Studies Acquired . | . . . Parts Repaired . | . . . Time . | . . . Parts Recycled . | . . . Recycled Matter . | . . . Retrieved Matter . | . . . Retrieved Components . | . . . Parts Scanalyzed . | . . . Part Schematics Acquired . | . . . Parts Damaged . | . . . Bothacking | -11 -10 -10 ------------ Run | Yrd Mat Sub Used RIF Installer . | . . . Robots Hacked . | . . . Non-combat . | . . . Combat . | . . . Robot Hacks Applied . | . . . Relay Couplers Released . | . . . Fabnet Peak Effective % . | . . . Robots Rewired . | . . . Allies Hacked . | . . . Hacks Repelled . | . . . Allies | -11 -10 -10 -------- Run | Yrd Mat Sub Total Allies . | . . . Largest Group . | . . . Highest-Rated Group . | . . . Highest-Rated Ally . | . . . Total Orders . | . . . Ally Attacks . | . . . Total Damage . | . . . Kills . | . . . Allies Corrupted . | . . . Allies Melted . | . . . Intel | -11 -10 -10 ------- Run | Yrd Mat Sub Active Infowar (turns) 1804 | 64 1562 178 Sensors 157 | . . 157 Seismic 1647 | 64 1562 21 Robot Analysis Total . | . . . Derelict Logs Recovered 1 | . . 1 Drone Launches . | . . . Drone Recoveries . | . . . Exploration | -11 -10 -10 ------------- Run | Yrd Mat Sub Turns Passed 1911 | 163 1570 178 Spaces Moved 1199 | 71 762 366 Core 46 | 4 . 42 Treads 829 | 67 762 . Legs . | . . . Wheels . | . . . Hover . | . . . Flight 324 | . . 324 Fastest Speed 32 | 50 160 32 Average Speed 121 | 153 160 36 Slowest Speed 272 | 160 240 272 Overloaded Moves . | . . . Propulsion Burnouts . | . . . Robots Hopped . | . . . Potential Cave-ins . | . . . Cave-ins Triggered . | . . . Exploration Rate (%) 45 | 4 99 32 Regions Visited 2 Branch Regions 1 Pre-discovered Areas 1 | . . 1 Known Exits Taken . | . . . Unknown Exits Taken 2 | 1 1 . Scrap Searched . | . . . Spaces Dug . | . . . Terrain Destroyed 8 | . . 8 Melee . | . . . Projectile . | . . . AOE 8 | . . 8 Terrain Rammed . | . . . Walls Destroyed . | . . . Machines Disabled . | . . . Actions | -11 -10 -10 --------- Run | Yrd Mat Sub Total 1508 | 93 1001 414 Wait 159 | . 139 20 Move 1197 | 70 761 366 Hop . | . . . Pick Up 24 | 1 18 5 Fast Attach 14 | 7 4 3 Attach 2 | . . 2 Detach 2 | . . 2 Swap 13 | 1 9 3 Drop 19 | . 9 10 Fire 73 | 14 56 3 Melee . | . . . Ram . | . . . Kick . | . . . Crush 5 | . 5 . Escape Stasis . | . . . Rewire . | . . . Trap . | . . . Miscellaneous . | . . . Route ------- -11/Scrapyard -10/Materials (discovered 6 exits: [*Mat x3] / [*Min x2] / [*Sub]) -10/Subcaves History --------- Turn | Location | Event 5 | -11/Scrapyard | Discovered new exit (range 15) 164 | -11/Scrapyard | Entered Materials 317 | -10/Materials | Build established: Mutant 475 | -10/Materials | Discovered new exit (range 8) 578 | -10/Materials | Discovered new exit (range 15) 840 | -10/Materials | Discovered new exit (range 9) 1311 | -10/Materials | Discovered new exit (range 14) 1679 | -10/Materials | Discovered new exit (range 8) 1710 | -10/Materials | Discovered new exit (range 6) 1734 | -10/Materials | Entered Subcaves 1781 | -10/Subcaves | Learned location of Zion (-7) 1781 | -10/Subcaves | Met a Zionite searching for "candidates" 1812 | -10/Subcaves | Shifting Twisted Machinery released Sub. Laser 1813 | -10/Subcaves | Shifting Twisted Machinery released Flamer 1840 | -10/Subcaves | Learned Materials terminal intel 1846 | -10/Subcaves | Ambushed by Subdwellers from Twisted Machinery 1858 | -10/Subcaves | Core integrity fell below 50% 1905 | -10/Subcaves | Core integrity fell below 20% 1912 | -10/Subcaves | Destroyed self with Grenade Launcher Last Messages --------------- we haven't found any suitable candidates yet." 01781_ MF-FIY(z): "Hey you! It's really dangerous down here, I feel that you could die at any moment. For your health and safety might I suggest a trip to Zion?" World map updated: -7/Zion. 01791_ AQ-AG9(R) emerges from the Twisted Machinery. Sub. Laser falls loose from the Twisted Machinery. Flamer falls loose from the Twisted Machinery. 01840_ Acquired derelict log, extracted data. Data stored: Materials terminal intel. 01846_ 1M-FP9(R) emerges from the Twisted Machinery. 01857_ System corrupted: Spread Laser rejected. 01857_ Lgt. Ion Engine destroyed. 01857_ Mining Laser destroyed. 01872_ VTOL Module destroyed. 01909_ PUVF9H:ST,IYEFV:M6NZZFHQAYNUK=96F Map ----- +----------------------------------------------------+ | ?????????????????????????????# # # # # ### | | ??????????????????????????????# ##### ##?## | | ??????????????????????????????## ##???# ###### | | ???????????????????????????????# #???## ## | | ??????????????????????????????## ##### | | ??????????????????????????????# ## ## | | ??????????????????????????????## """ | | ???????????????????????????????# "" | | ???????????????????????????????# | | ???????????????????????????????## | | ?????????????????????????????#### #"" | | ?????????????????????????????# #""[ | | ?????????????????????????????# | | ????????????????????????????## ### "#""" | | ????????????????????????????# ##?# "## | | ???????????????????????????## ##?# "#### | | ???????????????????????????# ### ###? | | ??????????????????????###### ### ## | | ?????????????????????## ## #?#" # | | ?????????????????????#"" ###" ## | | ?????????????????????#"" "## ####? | | ?????????????????????##"####### ""##" ##???? | | ???????????????????????####### " # *% ????? | | ???????????????????????# " " & #???? | | ???????????????????#" # """ #???? | | ???????????????????# " "@ ""## " #???? | | ???????????????????## " " """ ## " "?????? | | ????????????????????#" """ "" #" #?????? | | ????????????????????# "" # #????? | | ????????????????????### "" ## # ### #????? | | ??????????????????????### ## ##?#####????? | | ????????????????????????#### ### ##???????????? | | ???????????????????????????# #?## ##???????????? | | ??????????????????????????? #??# #???????????? | | ??????????????????????????? ##??# ##???????????? | | ??????????????????????????? #??## #???????????? | | ??????????????????????????? #???# ##???????????? | | ???????????????????????????#?#### #???????????? | | ???????????????????????????### ##???????????? | | ??????????????????????????## #????????????? | | ??????????????????????????# ## ####??????????? | | ??????????????????????????# ##### #??????????? | | ??????????????????????????## ### #??????????? | | ???????????????????????????# ##?????????? | | ???????????????????????????### ##????????? | | ???????????#####?????????????# " "#????????? | | ??????#??### #?????????????# """ "##???????? | | ??????# #$#" #####?????????# "[""" """#???????? | | ???????# ####??????# " " "#????????? | | ??????#$ "##" ######### " ####????????? | +----------------------------------------------------+ Best States ------------- Heat Dissipation 25 Energy Generation 10 Energy Capacity 125 Matter Stores 300 Matter Capacity 300 Sight Range 16 Robot Scan Range 14 Terrain Scan Density 10 Evasion (%) 63 Recoil Reduction 2 Item Schematics ----------------- None Robot Schematics ------------------ None Fabricated ------------ Nothing Repaired ---------- Nothing Studied --------- None Alien Tech Used ----------------- None Achievements -------------- None Challenges ------------ None Game ------ Seed RiotMetafieldPlating Manual? 0 Play Time 00:13:15 Cumulative 153.6 hours Start 2026.04.23 @ 12:33:42 End 2026.04.23 @ 12:45:02 Sessions 1 Manual Loads 0 Difficulty Rogue Special Mode None Game No. 238 Rogue 238 Adventurer 0 Explorer 0 Win Type - Total 1 Types 1/0/0/0/0/0/0/0/0/0 Lore% 53 Gallery% 56 Achievement% 42 Wizard Run 0 Options --------- Layout 1 ASCII 0 Keyboard 1 Movement Arrows Keybinds 0 Fullscreen 1 Font 24/Smallcaps Map View 50x35 Zoom Use 0% Tactical HUD 1 Map Filters NONE Filters NONE Steam 1 RUN: 8b5b73fa-18ac-496d-a78b-bd06a6d42791